bitfinex-derivatives/quotes_BTCF0:USTF0_20250117
["timestamp","ask_amount","ask_price","bid_price","bid_amount"]
[1737149398517,0.05741234,104990.0,104980.0,0.047606]
[1737149399919,0.05741234,104990.0,104980.0,0.408406]
[1737149400114,0.05741234,104990.0,104980.0,0.047606]
[1737149400714,0.05741234,104990.0,104980.0,0.408406]
[1737149402118,0.14446966,104990.0,104980.0,0.047606]
[1737149402320,0.19916966,104990.0,104980.0,0.047606]
[1737149402831,0.24677466,104990.0,104970.0,0.40841]
[1737149403014,0.14245732,104980.0,104970.0,0.40841]
[1737149403417,0.0554,104980.0,104970.0,0.40841]
[1737149403627,0.103006,104980.0,104970.0,0.40841]
[1737149405631,0.19006332,104980.0,104970.0,0.40841]
[1737149406628,0.24186332,104980.0,104970.0,0.40841]
[1737149407530,0.103006,104980.0,104970.0,0.49546732]
[1737149408016,0.00980734,104990.0,104970.0,0.49546732]
[1737149408221,0.047605,104990.0,104980.0,0.047606]
[1737149410231,0.047605,104990.0,104980.0,0.408406]
[1737149410430,0.047605,104990.0,104980.0,0.047606]
[1737149410923,0.047605,104990.0,104980.0,0.408406]
[1737149411229,0.047605,104990.0,104980.0,0.047606]
[1737149412825,0.13466232,104990.0,104980.0,0.047606]
[1737149413025,0.047606,104980.0,104970.0,0.408408]
[1737149414424,0.047606,104980.0,104970.0,0.49546532]
[1737149416435,0.047606,104980.0,104970.0,0.79167015]
[1737149416630,0.05730582,104980.0,104970.0,0.79167015]
[1737149417434,0.05730582,104980.0,104970.0,0.76174821]
[1737149417631,0.05730582,104980.0,104970.0,0.46554338]
[1737149417837,0.1144412,104980.0,104970.0,0.46554338]
[1737149418040,0.05730582,104980.0,104970.0,0.46554338]
[1737149419533,0.047611,104970.0,104960.0,0.86521683]
[1737149419740,0.10474638,104970.0,104960.0,0.86521683]
[1737149420334,0.047611,104970.0,104960.0,0.92235221]
[1737149420935,0.047611,104970.0,104960.0,0.62614738]
[1737149421338,0.047611,104970.0,104960.0,0.65609448]
[1737149427843,0.13469348,104970.0,104960.0,0.408412]
[1737149428044,0.13469348,104970.0,104960.0,0.3608]
[1737149428846,0.047615,104960.0,104950.0,1.70289105]
[1737149429039,0.047615,104960.0,104950.0,1.70165105]
[1737149429245,0.047615,104960.0,104950.0,1.07547538]
[1737149429740,0.047615,104960.0,104950.0,1.16255786]
[1737149430044,0.047615,104960.0,104950.0,1.83538059]
[1737149430246,0.13469748,104960.0,104950.0,1.78776459]
[1737149430449,0.096615,104960.0,104950.0,1.73926459]
[1737149430633,0.096615,104960.0,104950.0,1.37846459]
[1737149430634,0.54449748,104960.0,104950.0,1.37846459]
[1737149431163,0.63879748,104960.0,104950.0,7.888e-05]
[1737149432941,0.63879748,104960.0,104950.0,0.2940734]
[1737149434041,0.63879748,104960.0,104950.0,7.888e-05]
[1737149436447,0.04762,104940.0,104930.0,1.78681071]
[1737149436637,0.13470248,104940.0,104930.0,1.83601071]
[1737149437546,0.13477972,104940.0,104930.0,1.83601071]
[1737149441251,0.13477972,104940.0,104930.0,1.0284885]
[1737149441857,0.1444488,104940.0,104930.0,1.0284885]
[1737149443552,0.1444488,104940.0,104930.0,0.457625]
[1737149445356,0.11455231,104940.0,104930.0,0.51481099]
[1737149448462,0.11455231,104940.0,104930.0,0.457625]
[1737149449450,0.11455231,104940.0,104930.0,0.51481099]
[1737149449754,0.05736632,104940.0,104930.0,0.51481099]
[1737149449959,0.00974632,104940.0,104930.0,0.57199698]
[1737149450141,0.00974632,104940.0,104930.0,0.51481099]
[1737149450547,7.724e-05,104940.0,104930.0,0.51481099]
[1737149451057,7.724e-05,104940.0,104930.0,0.80880551]
[1737149451947,7.724e-05,104940.0,104930.0,1.3223332]
[1737149453664,7.724e-05,104940.0,104930.0,1.37951919]
[1737149453865,0.10479899,104960.0,104930.0,1.42714219]
[1737149454055,0.10479899,104960.0,104950.0,0.408416]
[1737149454553,0.047613,104960.0,104950.0,0.462116]
[1737149454746,0.10479899,104960.0,104950.0,0.462116]
[1737149455147,0.16198498,104960.0,104950.0,0.462116]
[1737149456553,0.17145496,104960.0,104950.0,0.462116]
[1737149459660,0.17145496,104960.0,104950.0,0.75611052]
[1737149460157,0.11426897,104960.0,104950.0,1.17409651]
[1737149460566,0.05708298,104960.0,104950.0,1.17409651]
[1737149460763,0.67349699,104980.0,104960.0,0.047611]
[1737149460764,0.047605,104980.0,104960.0,0.047611]
[1737149460957,0.152396,105000.0,104980.0,0.047599]
[1737149461151,0.047596,105000.0,104990.0,0.82638299]
[1737149461660,0.10478199,105000.0,104990.0,0.820597]
[1737149462559,0.10478199,105000.0,104990.0,0.87778299]
[1737149463160,0.10478199,105000.0,104990.0,0.820597]
[1737149463365,0.047596,105000.0,104990.0,0.820597]
[1737149464672,0.05723855,105000.0,104990.0,0.820597]
[1737149472067,0.05723855,105000.0,104990.0,0.870497]
[1737149474270,0.05723855,105000.0,104990.0,0.923397]
[1737149476371,0.05723855,105000.0,104990.0,1.01043395]
[1737149476981,0.00964255,105000.0,104990.0,1.01043395]
[1737149477177,0.14193997,105010.0,104990.0,1.01043395]
[1737149477371,0.609426,105020.0,105010.0,0.047588]
[1737149477675,0.609426,105020.0,105010.0,0.49542495]
[1737149477875,0.609426,105020.0,105010.0,0.408388]
[1737149478281,0.609426,105020.0,105010.0,0.54712495]
[1737149478772,0.609426,105020.0,105010.0,0.460088]
[1737149478976,0.04901114,105030.0,105020.0,0.047584]
[1737149479167,0.04901114,105030.0,105020.0,0.408384]
[1737149479780,0.13604809,105030.0,105020.0,0.408384]
[1737149480269,0.04901114,105030.0,105020.0,0.408384]
[1737149480668,0.13604809,105030.0,105020.0,0.408384]
[1737149481475,0.18964809,105030.0,105020.0,0.408384]
[1737149481872,0.19948077,105030.0,105020.0,0.408384]
[1737149483074,0.19948077,105030.0,105020.0,0.3608]
[1737149484490,0.19948077,105030.0,105010.0,0.509887]
[1737149484491,0.047584,105020.0,105010.0,0.509887]
[1737149484686,0.13462095,105020.0,105010.0,0.509887]
[1737149485598,0.047584,105020.0,105010.0,0.509887]
[1737149490098,0.13462095,105020.0,105010.0,0.460087]
[1737149490902,0.13462095,105020.0,105010.0,0.3608]
[1737149491413,0.18512095,105020.0,105010.0,0.3608]
[1737149493101,0.098084,105020.0,105010.0,0.3608]
[1737149496199,0.098084,105020.0,105010.0,0.408388]
[1737149498208,0.047584,105020.0,105010.0,0.408388]
[1737149498406,0.047584,105020.0,105010.0,0.459988]
[1737149499310,0.10468336,105020.0,105010.0,0.459988]
[1737149501606,0.10468336,105020.0,105010.0,0.51708736]
[1737149502004,0.10468336,105020.0,105010.0,0.459988]
[1737149503105,0.16178272,105020.0,105010.0,0.3608]
[1737149503412,0.21338272,105020.0,105010.0,0.3608]
[1737149505011,0.15628336,105020.0,105010.0,0.3608]
[1737149506105,0.047584,105020.0,105010.0,0.46548736]
[1737149506516,0.10468336,105020.0,105010.0,0.46548736]
[1737149506814,0.16178272,105020.0,105010.0,0.3608]
[1737149507200,0.21358272,105020.0,105010.0,0.3608]
[1737149509426,0.18640557,105020.0,105010.0,0.3608]
[1737149514916,0.047584,105020.0,105010.0,0.3608]
[1737149515115,0.047584,105020.0,105010.0,0.49540957]
[1737149515320,0.047584,105020.0,105010.0,0.59720957]
[1737149515512,0.047584,105020.0,105010.0,0.510188]
[1737149517519,0.13460557,105020.0,105010.0,0.510188]
[1737149519918,0.13460557,105020.0,105010.0,0.4626]
[1737149521126,0.13460557,105020.0,105010.0,0.4099]
[1737149521427,0.13460557,105020.0,105010.0,0.3608]
[1737149523523,0.18670557,105020.0,105010.0,0.3608]
[1737149523925,0.047588,105010.0,105000.0,0.504889]
[1737149524116,0.13460957,105010.0,105000.0,0.504889]
[1737149525224,0.13460957,105010.0,104990.0,1.904484]
[1737149525424,0.13461357,105000.0,104990.0,1.903244]
[1737149525821,0.047592,105000.0,104990.0,1.903244]
[1737149526126,0.13461357,105000.0,104990.0,1.903244]
[1737149527023,0.13461357,105000.0,104990.0,1.84207682]
[1737149527228,0.13461357,105000.0,104990.0,1.21590115]
[1737149528226,0.13461357,105000.0,104990.0,0.70370708]
[1737149531218,0.13461357,105000.0,104990.0,0.34290708]
[1737149531524,0.13461357,105000.0,104990.0,0.0492]
[1737149534938,0.047597,104990.0,104980.0,1.0787625]
[1737149535126,0.13461857,104990.0,104980.0,1.1278625]
[1737149535630,0.13461857,104990.0,104980.0,1.87641622]
[1737149536533,0.13461857,104990.0,104980.0,1.1278625]
[1737149537430,0.13461857,104990.0,104980.0,0.556999]
[1737149537631,0.047597,104990.0,104980.0,0.556999]
[1737149538541,0.047597,104990.0,104980.0,0.64402057]
[1737149539330,0.13461857,104990.0,104980.0,0.556999]
[1737149539639,0.13461857,104990.0,104980.0,0.5094]
[1737149540930,0.13461857,104990.0,104980.0,1.25795372]
[1737149541438,0.14422352,104990.0,104980.0,1.25795372]
[1737149542526,0.14422352,104990.0,104980.0,0.89715372]
[1737149542737,0.14422352,104990.0,104980.0,0.69133665]
[1737149542738,0.59204509,104990.0,104980.0,0.69133665]
[1737149542927,0.68324509,104990.0,104980.0,0.28019963]
[1737149543125,1.19508509,104990.0,104970.0,0.89192792]
[1737149543331,0.62964414,104980.0,104970.0,0.73603592]
[1737149543531,0.62964414,104980.0,104970.0,0.56202192]
[1737149543740,0.04761,104960.0,104950.0,0.87299407]
[1737149544051,0.13463157,104960.0,104950.0,0.87299407]
[1737149544244,0.13475177,104960.0,104950.0,0.87299407]
[1737149544635,0.13475177,104960.0,104950.0,0.3608]
[1737149544834,0.13475177,104960.0,104950.0,0.408415]
[1737149546136,0.0477302,104960.0,104950.0,0.408415]
[1737149546540,0.0001202,104960.0,104950.0,0.408415]
[1737149547346,0.08714177,104960.0,104950.0,0.408415]
[1737149547734,0.13475177,104960.0,104950.0,0.408415]
[1737149549034,0.14455824,104960.0,104950.0,0.408415]
[1737149550343,0.05753667,104960.0,104950.0,0.408415]
[1737149555146,0.14455824,104960.0,104950.0,0.408415]
[1737149556050,0.14455824,104960.0,104950.0,0.3608]
[1737149556445,0.14455824,104960.0,104950.0,0.408415]
[1737149567576,0.05753667,104960.0,104950.0,0.408415]
[1737149567771,0.14455824,104960.0,104950.0,0.408415]
[1737149573456,0.17187171,104960.0,104950.0,0.408415]
[1737149580369,0.17187171,104960.0,104950.0,0.3608]
[1737149580565,0.26327171,104960.0,104950.0,0.3608]
[1737149592476,0.31088371,104960.0,104950.0,0.3608]
[1737149597568,0.67168371,104960.0,104940.0,0.548316]
[1737149597873,0.04762,104940.0,104930.0,0.3608]
[1737149598073,0.16195504,104940.0,104930.0,0.3608]
[1737149598272,0.31382256,104940.0,104930.0,0.3608]
[1737149598472,0.67470967,104940.0,104910.0,0.50200552]
[1737149598672,0.67470967,104940.0,104910.0,0.54963752]
[1737149598673,0.16196404,104920.0,104910.0,0.54963752]
[1737149599466,0.13480576,104920.0,104910.0,0.54963752]
[1737149600077,0.13480576,104920.0,104910.0,0.40790552]
[1737149602776,0.14415361,104920.0,104910.0,0.40790552]
[1737149603378,0.19195361,104920.0,104910.0,0.40790552]
[1737149604865,0.19195361,104920.0,104870.0,0.408449]
[1737149604866,0.63993037,104920.0,104870.0,0.408449]
[1737149605067,0.63993037,104920.0,104870.0,0.047649]
[1737149605068,0.13482376,104880.0,104870.0,0.047649]
[1737149605476,0.047651,104870.0,104860.0,1.58828418]
[1737149605666,0.49562776,104870.0,104860.0,0.1402]
[1737149605873,0.49571739,104870.0,104860.0,0.1402]
[1737149606281,0.49571739,104870.0,104860.0,0.187856]
[1737149606583,0.49571739,104870.0,104860.0,0.141356]
[1737149606972,0.49671739,104870.0,104860.0,0.150356]
[1737149607177,0.49671739,104870.0,104860.0,0.009]
[1737149608981,0.50629202,104870.0,104860.0,0.009]
[1737149609375,0.047656,104860.0,104850.0,0.093959]
[1737149609577,0.49563276,104860.0,104850.0,0.093959]
[1737149610582,0.49663276,104860.0,104850.0,0.102959]
[1737149610977,0.49663276,104860.0,104850.0,0.111959]
[1737149610978,0.410456,104860.0,104850.0,0.111959]
[1737149611175,0.49763276,104860.0,104850.0,0.111959]
[1737149611380,0.002,104860.0,104850.0,0.55993576]
[1737149611583,0.001,104860.0,104850.0,0.55093576]
[1737149612381,0.56319402,104870.0,104850.0,0.54193576]
[1737149612585,0.56319402,104870.0,104860.0,0.047656]
[1737149613278,0.50529402,104870.0,104860.0,0.047656]
[1737149613689,0.047656,104860.0,104850.0,0.04766]
[1737149613981,0.49563276,104860.0,104850.0,0.04766]
[1737149614282,0.58280952,104860.0,104840.0,0.1397]
[1737149614489,0.13483776,104850.0,104840.0,0.187364]
[1737149616988,0.047661,104850.0,104840.0,0.548164]
[1737149618200,0.047661,104850.0,104840.0,0.187364]
[1737149618581,0.047661,104850.0,104840.0,0.548164]
[1737149622089,0.047661,104850.0,104840.0,0.27454076]
[1737149622290,0.047661,104850.0,104840.0,0.63534076]
[1737149622992,0.047661,104850.0,104840.0,0.187364]
[1737149623291,0.1442566,104850.0,104840.0,0.187364]
[1737149626191,0.04767,104830.0,104820.0,0.04777246]
[1737149626491,0.49564676,104830.0,104820.0,9.846e-05]
[1737149626690,0.58294189,104830.0,104820.0,9.846e-05]
[1737149627791,0.49576513,104830.0,104820.0,9.846e-05]
[1737149627998,0.58294189,104830.0,104820.0,9.846e-05]
[1737149631495,0.047679,104810.0,104800.0,0.1]
[1737149631799,0.49565576,104810.0,104800.0,0.1]
[1737149632000,0.53665576,104810.0,104800.0,0.1]
[1737149633493,0.49565276,104820.0,104800.0,0.23485976]
[1737149633697,0.047676,104820.0,104810.0,0.49565576]
[1737149633894,0.047676,104820.0,104810.0,0.047679]
[1737149634102,0.13485276,104820.0,104800.0,0.4608]
[1737149634298,0.13485576,104810.0,104800.0,0.508483]
[1737149634496,0.047679,104810.0,104800.0,0.508483]
[1737149634697,0.047679,104810.0,104800.0,0.59565976]
[1737149634903,0.047679,104810.0,104800.0,0.147683]
[1737149636495,0.13485576,104810.0,104800.0,0.147683]
[1737149637603,0.047679,104810.0,104800.0,0.147683]
[1737149641007,0.047679,104810.0,104800.0,0.508483]
[1737149641208,0.408479,104810.0,104800.0,0.147683]
[1737149641411,0.13485576,104810.0,104800.0,0.147683]
[1737149641802,0.13485576,104810.0,104800.0,0.508483]
[1737149642097,0.58293853,104810.0,104770.0,0.408496]
[1737149642303,0.49566876,104780.0,104770.0,0.133596]
[1737149642504,0.49566876,104780.0,104770.0,0.0859]
[1737149643111,0.49566876,104780.0,104770.0,0.133597]
[1737149648813,0.50536534,104780.0,104770.0,0.133597]
[1737149650622,0.50536534,104780.0,104770.0,0.0859]
[1737149650919,0.50536534,104780.0,104770.0,0.0415]
[1737149651120,0.047697,104770.0,104760.0,0.2841338]
[1737149651320,0.49567376,104770.0,104760.0,0.2841338]
[1737149652214,0.49567376,104770.0,104760.0,9.933e-05]
[1737149653323,0.408497,104770.0,104760.0,0.13497809]
[1737149653622,0.047697,104770.0,104760.0,0.04780133]
[1737149653807,0.047697,104770.0,104760.0,0.40860133]
[1737149654417,0.047697,104770.0,104760.0,0.6926358]
[1737149655720,0.047697,104770.0,104760.0,1.03347716]
[1737149656118,0.13487376,104770.0,104760.0,1.03347716]
[1737149656719,0.13487376,104770.0,104760.0,0.74944269]
[1737149657331,0.05748324,104780.0,104770.0,0.047697]
[1737149657510,0.05748324,104780.0,104770.0,0.25217376]
[1737149657713,0.05748324,104780.0,104770.0,0.164997]
[1737149658324,0.14466,104780.0,104770.0,0.164997]
[1737149658630,0.14466,104780.0,104770.0,0.50583836]
[1737149658818,0.50546,104780.0,104770.0,0.50583836]
[1737149659216,0.14466,104780.0,104770.0,0.50583836]
[1737149659627,0.50546,104780.0,104770.0,0.50583836]
[1737149660126,0.14466,104780.0,104770.0,0.50583836]
[1737149660825,0.14466,104780.0,104770.0,0.164997]
[1737149664235,0.50546,104780.0,104770.0,0.164997]
[1737149664823,0.14466,104780.0,104770.0,0.164997]
[1737149665332,0.14466,104780.0,104770.0,0.45512647]
[1737149666524,0.05748324,104780.0,104770.0,0.45512647]
[1737149668319,0.14466,104780.0,104770.0,0.45512647]
[1737149670325,0.14466,104780.0,104770.0,0.85277473]
[1737149671928,0.50546,104780.0,104770.0,0.85277473]
[1737149672630,0.50546,104780.0,104770.0,1.30722976]
[1737149673021,0.37058924,104780.0,104770.0,1.39440652]
[1737149673227,0.92129,104790.0,104780.0,0.047692]
[1737149673928,1.00846676,104790.0,104780.0,0.047692]
[1737149674332,1.00858306,104790.0,104780.0,0.047692]
[1737149674635,0.64778306,104790.0,104780.0,0.408492]
[1737149674819,0.64778306,104790.0,104780.0,1.00865702]
[1737149676433,0.0001163,104790.0,104780.0,1.09583378]
[1737149676831,0.00935525,104800.0,104790.0,0.047688]
[1737149677021,0.408481,104810.0,104790.0,0.49566476]
[1737149677223,0.408481,104810.0,104800.0,0.047683]
[1737149677422,0.49565776,104810.0,104800.0,0.047683]
[1737149677831,0.49577298,104810.0,104800.0,0.047683]
[1737149678531,0.49577298,104810.0,104790.0,0.047687]
[1737149678532,0.047683,104800.0,104790.0,0.047687]
[1737149678731,0.57485976,104800.0,104790.0,0.047687]
[1737149679432,0.57485976,104800.0,104790.0,1.02013781]
[1737149680634,0.57485976,104800.0,104790.0,1.1235941]
[1737149681825,0.487683,104800.0,104790.0,1.1235941]
[1737149683638,0.487683,104800.0,104790.0,1.19025107]
[1737149684130,0.126883,104800.0,104790.0,1.19025107]
[1737149684934,0.126883,104800.0,104790.0,1.5230365]
[1737149687041,0.126883,104800.0,104790.0,1.87607656]
[1737149687855,0.04,104800.0,104790.0,1.96325332]
[1737149688136,0.4184095,104810.0,104800.0,0.047683]
[1737149689341,0.50558626,104810.0,104800.0,1.12366515]
[1737149692544,0.0099285,104810.0,104800.0,1.21084191]
[1737149692743,0.0576075,104810.0,104800.0,1.21084191]
[1737149692950,0.0576075,104810.0,104800.0,1.12366515]
[1737149694842,0.04779422,104810.0,104800.0,1.21084191]
[1737149695149,0.047675,104820.0,104800.0,1.57164191]
[1737149695448,0.408471,104830.0,104820.0,0.047674]
[1737149695652,0.408471,104830.0,104820.0,0.13485076]
[1737149696443,0.41825661,104830.0,104820.0,0.13485076]
[1737149696748,0.41825661,104830.0,104820.0,0.047674]
[1737149697345,0.41825661,104830.0,104820.0,0.83662948]
[1737149698347,0.41825661,104830.0,104820.0,0.92380624]
[1737149698554,0.05745661,104830.0,104820.0,0.92380624]
[1737149698848,0.05745661,104830.0,104820.0,0.83662948]
[1737149700349,0.14463337,104830.0,104820.0,0.83662948]
[1737149701339,0.05745661,104830.0,104820.0,0.83662948]
[1737149702040,0.41825661,104830.0,104820.0,0.83662948]
[1737149702245,0.05745661,104830.0,104820.0,0.83662948]
[1737149703451,0.41825661,104830.0,104820.0,0.83662948]
[1737149704450,0.41825661,104830.0,104820.0,0.44655059]
[1737149706552,0.41825661,104830.0,104820.0,0.72879943]
[1737149710956,0.41825661,104830.0,104820.0,0.32992284]
[1737149712055,0.41825661,104830.0,104820.0,0.4170996]
[1737149712353,0.96479955,104840.0,104830.0,0.04767]
[1737149712558,0.96479955,104840.0,104830.0,0.17484676]
[1737149712859,0.92269955,104840.0,104830.0,0.17484676]
[1737149713154,0.92269955,104840.0,104830.0,0.08767]
[1737149716260,0.9320295,104840.0,104830.0,0.08767]
[1737149720863,0.9320295,104840.0,104830.0,0.48654659]
[1737149722564,0.9320295,104840.0,104830.0,0.81933202]
[1737149724576,0.9320295,104840.0,104830.0,0.90650878]
[1737149724873,0.9320295,104840.0,104830.0,1.25954884]
[1737149725076,0.9320295,104840.0,104830.0,1.17237208]
[1737149725671,0.9320295,104840.0,104830.0,0.77349549]
[1737149726478,0.4192295,104840.0,104830.0,0.77349549]
[1737149727376,0.47651952,104840.0,104830.0,0.83078551]
[1737149727983,0.47651952,104840.0,104830.0,1.34204742]
[1737149728174,0.53380954,104840.0,104830.0,1.1970874]
[1737149728472,0.0107615,104840.0,104830.0,1.30204742]
[1737149728677,0.0107615,104840.0,104830.0,1.30980736]
[1737149728678,0.00143155,104840.0,104830.0,1.30980736]
[1737149728878,0.00143155,104840.0,104830.0,1.38950736]
[1737149730177,0.00143155,104840.0,104830.0,2.31061621]
[1737149731473,0.00143155,104840.0,104830.0,2.34060911]
[1737149732576,0.41819931,104850.0,104840.0,0.047665]
[1737149732982,0.50548223,104850.0,104840.0,0.047665]
[1737149734180,0.50548223,104850.0,104840.0,0.83731514]
[1737149742489,0.41819931,104850.0,104840.0,0.83731514]
[1737149743287,0.50548223,104850.0,104840.0,0.90449994]
[1737149745787,0.59276515,104850.0,104840.0,0.85683494]
[1737149746691,0.59276515,104850.0,104840.0,1.01609778]
[1737149750490,0.59276515,104850.0,104840.0,0.68331235]
[1737149751798,0.59276515,104850.0,104840.0,0.28334212]
[1737149752494,0.50548223,104850.0,104840.0,0.28334212]
[1737149753194,0.50548223,104850.0,104840.0,0.61211471]
[1737149753505,0.47548615,104850.0,104840.0,0.61211471]
[1737149754189,0.47548615,104850.0,104840.0,0.32877259]
[1737149754992,0.47548615,104850.0,104830.0,1.32258778]
[1737149755193,0.00973731,104850.0,104840.0,0.16223868]
[1737149755389,0.047661,104850.0,104840.0,0.22945184]
[1737149755694,0.047661,104850.0,104840.0,0.28673868]
[1737149755896,0.047661,104850.0,104840.0,0.55822443]
[1737149756487,0.047661,104850.0,104840.0,0.61551127]
[1737149756799,0.047661,104850.0,104840.0,0.55822443]
[1737149757183,0.047661,104850.0,104840.0,0.61551127]
[1737149757388,0.047661,104850.0,104840.0,0.5882063]
[1737149759391,0.37016394,104860.0,104840.0,0.5882063]
[1737149759692,0.41782094,104860.0,104850.0,0.13492971]
[1737149760292,0.41782094,104860.0,104850.0,0.047661]
[1737149760498,0.05702094,104860.0,104850.0,0.13492971]
[1737149760994,0.05702094,104860.0,104850.0,0.92023911]
[1737149762593,0.05702094,104860.0,104850.0,1.28103911]
[1737149764292,0.05702094,104860.0,104850.0,1.79230102]
[1737149765394,0.05702094,104860.0,104850.0,1.28103911]
[1737149766610,0.05702094,104860.0,104850.0,1.43150102]
[1737149766993,0.05702094,104860.0,104850.0,1.79230102]
[1737149767396,0.05702094,104860.0,104850.0,1.43150102]
[1737149767597,0.05702094,104860.0,104850.0,1.79230102]
[1737149768504,0.408452,104870.0,104860.0,0.047656]
[1737149768702,0.60298092,104880.0,104870.0,0.047652]
[1737149768906,0.60298092,104880.0,104870.0,0.13492071]
[1737149769107,0.96378092,104880.0,104870.0,0.13492071]
[1737149769513,0.96378092,104880.0,104870.0,0.047652]
[1737149769806,0.61251022,104880.0,104870.0,0.047652]
[1737149770014,0.97331022,104880.0,104870.0,0.5332383]
[1737149770307,0.61251022,104880.0,104870.0,0.5332383]
[1737149770810,0.97331022,104880.0,104870.0,0.44596959]
[1737149773203,0.93201022,104880.0,104870.0,0.44596959]
[1737149773512,0.57121022,104880.0,104870.0,0.44596959]
[1737149773821,0.57121022,104880.0,104870.0,0.5332383]
[1737149775710,0.57121022,104880.0,104870.0,0.44596959]
[1737149776609,0.93201022,104880.0,104870.0,0.44596959]
[1737149777415,0.9892597,104880.0,104870.0,0.50321907]
[1737149778404,0.9892597,104880.0,104870.0,0.44596959]
[1737149779507,1.0268597,104880.0,104870.0,0.44596959]
[1737149781007,1.0268597,104880.0,104870.0,0.50321907]
[1737149781909,0.5142597,104880.0,104870.0,0.95975588]
[1737149782814,0.5142597,104880.0,104870.0,0.9025064]
[1737149783204,0.5142597,104880.0,104870.0,1.23127899]
[1737149785012,0.5142597,104880.0,104870.0,0.44596959]
[1737149786511,0.51282878,104880.0,104870.0,0.44596959]
[1737149788123,0.62732774,104880.0,104870.0,0.72709018]
[1737149788416,0.70802774,104880.0,104870.0,0.60755647]
[1737149788621,0.70802774,104880.0,104870.0,0.58655647]
[1737149789309,0.70802774,104880.0,104860.0,0.32877259]
[1737149789310,0.047652,104870.0,104860.0,0.32877259]
[1737149789522,0.52295096,104870.0,104860.0,0.32877259]
[1737149790202,0.047661,104850.0,104840.0,1.35337819]
[1737149790405,0.88375996,104850.0,104840.0,1.35337819]
[1737149790601,0.82651048,104850.0,104840.0,1.31106228]
[1737149791607,0.82651048,104850.0,104840.0,0.32877259]
[1737149793114,0.047665,104840.0,104830.0,0.05731649]
[1737149793314,0.408465,104840.0,104830.0,6.701e-05]
[1737149794415,0.49576727,104840.0,104830.0,6.701e-05]
[1737149795913,0.53396727,104840.0,104830.0,6.701e-05]
[1737149797115,0.60996727,104840.0,104830.0,6.701e-05]
[1737149799524,0.047674,104820.0,104810.0,1.11901248]
[1737149799827,0.49577627,104820.0,104810.0,1.11901248]
[1737149800530,0.49584328,104820.0,104810.0,0.66247567]
[1737149801527,0.49584328,104820.0,104810.0,0.0376]
[1737149802325,0.40854101,104820.0,104810.0,0.0376]
[1737149802822,6.701e-05,104820.0,104810.0,0.17258127]
[1737149803126,6.701e-05,104820.0,104810.0,0.24668127]
[1737149804616,0.04774101,104820.0,104810.0,0.24668127]
[1737149804837,0.40854101,104820.0,104810.0,0.24668127]
[1737149806225,0.04774101,104820.0,104810.0,0.24668127]
[1737149806723,0.40854101,104820.0,104810.0,0.24668127]
[1737149807122,0.40854101,104820.0,104810.0,0.64438025]
[1737149808234,0.40854101,104820.0,104810.0,0.24668127]
[1737149814028,0.40854101,104820.0,104810.0,0.64438025]
[1737149818038,0.40854101,104820.0,104810.0,1.03199067]
[1737149818845,6.701e-05,104820.0,104810.0,1.39279067]
[1737149819038,6.701e-05,104820.0,104810.0,1.03199067]
[1737149820132,0.36086701,104820.0,104810.0,1.03199067]
[1737149820835,6.701e-05,104820.0,104810.0,1.03199067]
[1737149821237,0.2158,104830.0,104820.0,0.047676]
[1737149821531,0.2158,104830.0,104820.0,0.58308054]
[1737149821734,0.2158,104830.0,104820.0,0.49577827]
[1737149822141,0.2158,104830.0,104820.0,0.82455086]
[1737149823151,0.2158,104830.0,104820.0,0.46375086]
[1737149823542,0.2158,104830.0,104820.0,0.82455086]
[1737149824441,0.2158,104830.0,104820.0,0.46375086]
[1737149825846,0.41780625,104840.0,104820.0,0.46375086]
[1737149826044,0.41780625,104840.0,104830.0,0.08730227]
[1737149826349,0.41780625,104840.0,104830.0,0.13497327]
[1737149827349,0.41780625,104840.0,104830.0,0.92030319]
[1737149827953,0.50510852,104840.0,104830.0,0.83300092]
[1737149828353,0.54360852,104840.0,104830.0,0.83300092]
[1737149828548,0.45630625,104840.0,104830.0,0.83300092]
[1737149828854,0.45630625,104840.0,104830.0,0.92030319]
[1737149829953,0.40863925,104840.0,104830.0,0.92030319]
[1737149830347,0.40863925,104840.0,104830.0,0.95700319]
[1737149833159,0.40863925,104840.0,104830.0,0.6282306]
[1737149837957,0.40863925,104840.0,104830.0,0.57099241]
[1737149838952,0.3993,104840.0,104830.0,0.95700319]
[1737149839558,0.3608,104840.0,104830.0,0.95700319]
[1737149839856,0.49576927,104840.0,104830.0,0.83300092]
[1737149840073,0.49576927,104840.0,104830.0,0.78532992]
[1737149840866,0.408467,104840.0,104830.0,0.83300092]
[1737149841162,0.408467,104840.0,104830.0,0.77586622]
[1737149844660,0.408467,104840.0,104830.0,0.83300092]
[1737149845564,0.49576927,104840.0,104830.0,0.83300092]
[1737149846469,0.49576927,104840.0,104830.0,0.78532992]
[1737149848074,0.49576927,104840.0,104830.0,0.72854238]
[1737149849365,0.49576927,104840.0,104830.0,0.39976979]
[1737149850466,0.047671,104830.0,104820.0,1.23277171]
[1737149850763,0.60687327,104830.0,104820.0,1.23277171]
[1737149851257,0.519571,104830.0,104820.0,1.23277171]
[1737149852164,0.445571,104830.0,104820.0,1.32007398]
[1737149852667,0.445571,104830.0,104820.0,1.23277171]
[1737149853259,0.445571,104830.0,104820.0,1.32007398]
[1737149853661,0.445571,104830.0,104820.0,1.23277171]
[1737149857561,0.445571,104830.0,104820.0,0.83300192]
[1737149858568,0.45533624,104830.0,104820.0,0.83300192]
[1737149859668,0.54263851,104830.0,104820.0,0.78532992]
[1737149859870,0.54263851,104830.0,104820.0,0.71577688]
[1737149860171,0.61213851,104830.0,104820.0,0.590866]
[1737149860572,0.047676,104820.0,104810.0,0.89927921]
[1737149860767,0.408476,104820.0,104810.0,0.81073694]
[1737149861562,0.408476,104820.0,104810.0,0.88383694]
[1737149864874,0.624276,104820.0,104810.0,0.88383694]
[1737149866071,0.624276,104820.0,104810.0,0.48425259]
[1737149866981,0.624276,104820.0,104810.0,0.57155486]
[1737149867571,0.624276,104820.0,104810.0,0.48425259]
[1737149867877,0.624276,104820.0,104810.0,0.57155486]
[1737149869378,0.624276,104820.0,104810.0,0.54156229]
[1737149870093,0.263476,104820.0,104810.0,0.54156229]
[1737149870276,0.624276,104820.0,104810.0,0.54156229]
[1737149870782,0.408476,104820.0,104810.0,0.54156229]
[1737149872769,0.047676,104820.0,104810.0,0.54156229]
[1737149872976,0.408476,104820.0,104810.0,0.54156229]
[1737149877782,0.408476,104820.0,104810.0,0.89460235]
[1737149878577,0.047676,104820.0,104810.0,0.89460235]
[1737149878986,0.4657857,104820.0,104810.0,0.83729265]
[1737149879286,0.4657857,104820.0,104810.0,0.79999265]